Cogmind - Beta 16 @@@ ROGUE MODE // 2025.10.27 @ 20:35:07 Player: Jaegerpls Result: Destroyed by PK-BOK(R) with Subdweller Machine Gun Performance ------------- Evolutions (0) 0 Regions Visited (2) 400 Robots Destroyed (10) 50 Value Destroyed (257) 257 Prototype IDs (0) 0 Alien Tech Used (0) 0 Bonus (0) 0 TOTAL SCORE: 707 Bonus ------- None Cogmind --------- Core Integrity 0/250 Matter 267/300 Energy 100/100 System Corruption 0% Temperature Cool (0) Movement Core (150) Ox2 Location -10/Subcaves Parts ------- > --- POWER (1) -------- (None) > --- PROPULSION (2) --- (None) > --- UTILITY (2) ------ Small Storage Unit Signal Interpreter > --- WEAPON (2) ------- Assault Rifle > --- INVENTORY (8) ---- Subdweller Power Source Wheel Heat Sink Humpback Mining Laser Peak State ------------ > --- POWER ------------ Ion Engine > --- PROPULSION ------- Wheel Subdweller Monowheel > --- UTILITY ---------- Small Storage Unit Signal Interpreter > --- WEAPON ----------- Small Laser Small Laser > --- INVENTORY -------- Subdweller Power Source Wheel Heat Sink Humpback Assault Rifle Mining Laser Flamer [Rating: 9] Favorites ----------- Power Ion Engine Engine Ion Engine Propulsion Wheel Wheel Wheel Utility Small Storage Unit Storage Small Storage Unit Processor Signal Interpreter Weapon Small Laser Energy Gun Small Laser Energy Cannon Beam Cannon Ballistic Gun Assault Rifle Special Weapon Flamer Build | -11 -10 -10 ------- Run | Yrd Mat Sub Slots Evolved . | . . . Power . | . . . Propulsion . | . . . Utility . | . . . Weapon . | . . . Parts Attached 17 | 6 7 4 Power 3 | 1 2 . Engine 3 | 1 2 . Core . | . . . Reactor . | . . . Propulsion 4 | 2 1 1 Treads . | . . . Leg . | . . . Wheel 4 | 2 1 1 Hover . | . . . Flight . | . . . Utility 2 | 1 1 . Device . | . . . Storage 1 | 1 . . Processor 1 | . 1 . Hackware . | . . . Protection . | . . . Artifact . | . . . Weapon 8 | 2 3 3 Energy Gun 5 | 2 2 1 Energy Cannon 1 | . 1 . Ballistic Gun 1 | . . 1 Ballistic Cannon . | . . . Launcher . | . . . Special Weapon 1 | . . 1 Impact Weapon . | . . . Slashing Weapon . | . . . Piercing Weapon . | . . . Special Melee Weapon . | . . . Unidentified Prototypes . | . . . Parts Lost 8 | . . 8 Power 1 | . . 1 Propulsion 2 | . . 2 Utility . | . . . Weapon 5 | . . 5 Highest Loss Streak 6 | . . 6 To Critical Strikes . | . . . Average Backups 6 | 2 7 7 Power . | . . 1 Propulsion 1 | 1 2 1 Utility . | . . 1 Weapon 3 | . 4 2 Tool/Special . | . . . Unused Backups 8 | . 2 6 Power 1 | . . 1 Propulsion 2 | . . 2 Utility 2 | . . 2 Weapon 3 | . 2 1 Tool/Special . | . . . Average Slot Usage (%) 97 | . 96 98 Engine 14 | . 14 14 Wheel 27 | . 28 26 Storage 14 | . 14 14 Processor 12 | . 10 14 Energy Gun 24 | . 26 20 Energy Cannon 2 | . 1 4 Peak Build Rating 9 | 6 7 9 Average Rating 7 | 4 6 8 On Entrance 4 | . 6 7 Avg Prop Armor Cover (%) . | . . . Naked Turns . | . . . Heaviest Build 14 | 12 14 14 Greatest Support 30 | 20 20 30 Greatest Overweight (x) . | . . . Average Overweight (x) . | . . . Largest Inventory Capacity 8 | 8 8 8 Average Capacity 7 | 7 8 8 Most Carried 8 | 4 8 8 Average Carried 7 | 2 7 7 Final Capacity 8 | 8 8 8 Final Carried 8 | 4 8 6 Class Distribution -------------------- 75% | Mutant 24% | Scavenger-Mutant Dominant Class ---------------- Mutant | -10/Materials Scavenger-Mutant | -10/Subcaves Resources | -11 -10 -10 ----------- Run | Yrd Mat Sub Matter Collected 331 | 193 90 48 Remotely . | . . . Salvage Created 310 | . 188 122 Parts 24 | . 16 8 Haulers Intercepted . | . . . Recyclers Shooed . | . . . Parts Field Recycled . | . . . Retrieved Matter . | . . . Parts Self-Destructed . | . . . Prevented . | . . . Parts Restored . | . . . Kills | -11 -10 -10 ------- Run | Yrd Mat Sub Combat Hostiles Destroyed 9 | . 6 3 Guns 9 | . 6 3 Classes Destroyed 4 | . 3 1 Builder 1 | . 1 . Swarmer 3 | . 3 . Grunt 3 | . 3 . Subdweller 3 | . . 3 Best Kill Streak 3 | . 3 2 Combat Bots Only 2 | . 1 2 Max Kills in Single Turn 1 | . 1 1 Gunslinging . | . . . Exploded . | . . . Melee . | . . . Uniques/NPCs Destroyed . | . . . Combat | -11 -10 -10 -------- Run | Yrd Mat Sub Hostile Shots Fired 88 | . 39 49 Missed 29 | . 12 17 Hits 59 | . 27 32 Projectile 59 | . 27 32 Critical Strikes 2 | . . 2 Damage Taken 1056 | . 269 787 Core 259 | . 70 189 Absorbed by Shields . | . . . Core Remaining (%) 100 | 100 . . Volleys Fired 55 | . 29 26 Largest 2 | . 2 2 Hottest 140 | . 80 140 Shots Fired 103 | . 57 46 Gun 92 | . 57 35 Cannon 8 | . . 8 Launcher . | . . . Special 3 | . . 3 Kinetic 8 | . . 8 Thermal 95 | . 57 38 Explosive . | . . . Electromagnetic . | . . . Robot Hit Streak 19 | . 5 19 Robot Miss Streak 8 | . 8 4 Penetration Max . | . . . Secondary Targets 1 | . 1 . Max Gunslinging Chain 1 | . 1 . Shots Hit Robots 59 | . 22 37 Core Hits 17 | . 10 7 Critical Kills . | . . . Critical Parts Destroyed . | . . . Critical Strikes . | . . . Melee Attacks . | . . . Impact . | . . . Slashing . | . . . Piercing . | . . . Sneak Attacks . | . . . Combat Hostiles . | . . . Follow-up Attacks . | . . . Damage Inflicted 726 | . 273 453 Guns 604 | . 273 331 Cannons 89 | . . 89 Explosions . | . . . Melee . | . . . Ramming . | . . . Kinetic 99 | . . 99 Thermal 627 | . 273 354 Explosive . | . . . Electromagnetic . | . . . Impact . | . . . Slashing . | . . . Piercing . | . . . Highest Corruption . | . . . Average Corruption . | . . . Corruption Purged . | . . . Corruption Blocked . | . . . Overload Shots . | . . . Overflow Damage . | . . . Projectiles . | . . . Explosions . | . . . Melee . | . . . Knockbacks . | . . . Impact . | . . . Kinetic . | . . . Secondary . | . . . Self-Inflicted Damage . | . . . Shots . | . . . Rammed . | . . . Targets Rammed . | . . . Kicked . | . . . Crushed . | . . . Highest Temperature 354 | . 354 . Average Temperature 113 | . 113 . Received Heat Transfer 174 | . 126 48 Effects 2 | . 2 . Interference 2 | . 2 . Siege Activations . | . . . Martial Activations . | . . . Shielding Activations . | . . . Robots Disrupted . | . . . Combat Hostiles . | . . . Robots Corrupted . | . . . Combat Hostiles . | . . . Parts Fried . | . . . Impact Corruptions . | . . . Robots Melted . | . . . Combat Hostiles . | . . . Parts Melted 1 | . . 1 Heat Transferred 1575 | . 625 950 Parts Sabotaged . | . . . Parts Stolen . | . . . Parts Stripped . | . . . Power Chain Reactions . | . . . Alert | -11 -10 -10 ------- Run | Yrd Mat Sub Maximum Alert Level . | . . . Low Security (%) 100 | 100 100 . Level 1 . | . . . Level 2 . | . . . Level 3 . | . . . Level 4 . | . . . Level 5 . | . . . High Security . | . . . Max Security . | . . . Peak Influence 109 | . 109 . Initial . | . . . Average 54 | . 61 . Influence Increases 225 | . 225 . Destroy 0b10 Robot/C 120 | . 120 . Destroy 0b10 Robot/NC 5 | . 5 . Destroy Leader 20 | . 20 . Successful Hack 20 | . 20 . Lose Combat Pursuer 60 | . 60 . Influence Decreases 225 | . 145 80 Entered New Map 39 | . . 39 Time Decay 166 | . 145 21 Lost Part 20 | . . 20 Squads Dispatched 1 | . 1 . Investigation 1 | . 1 . Extermination . | . . . Reinforcement . | . . . Assault . | . . . Garrison . | . . . Intercept . | . . . Searches Triggered . | . . . Construction Impeded . | . . . Haulers Reinforced . | . . . Active Scanning Responses . | . . . Cargo Convoy Interrupts . | . . . Stealth | -11 -10 -10 --------- Run | Yrd Mat Sub Distress Signals 1 | . 1 . Communications Jammed . | . . . Distress Signals . | . . . Times Spotted 17 | . 13 4 Peak Tracking Total 3 | . 3 2 Tactical Retreats 2 | . 2 . Traps | -11 -10 -10 ------- Run | Yrd Mat Sub Traps Triggered 3 | . 1 2 Indirectly . | . . . Trap Hack Attempts . | . . . Triggered . | . . . Disarmed . | . . . Reprogrammed . | . . . Reused . | . . . Traps Extracted . | . . . Installed . | . . . Triggered . | . . . Machines | -11 -10 -10 ---------- Run | Yrd Mat Sub Machines Disabled . | . . . Max in Single Turn . | . . . Machines Repaired . | . . . Machines Dismantled . | . . . Machines Sabotaged . | . . . Overloaded Fab Kills . | . . . Hacking | -11 -10 -10 --------- Run | Yrd Mat Sub Machines Accessed 5 | . 5 . Terminals 5 | . 5 . Fabricators . | . . . Repair Stations . | . . . Recycling Units . | . . . Scanalyzers . | . . . Garrison Access . | . . . Total Hacks 16 | . 16 . Successful 10 | . 10 . Failed 6 | . 6 . Catastrophic . | . . . Database Lockouts . | . . . Manual 15 | . 15 . Terminals 16 | . 16 . Fabricators . | . . . Repair Stations . | . . . Recycling Units . | . . . Scanalyzers . | . . . Garrison Access . | . . . Terminal Hacks 1 | . 1 . Level Access Points 1 | . 1 . Fabricator Hacks . | . . . Repair Station Hacks . | . . . Recycling Unit Hacks . | . . . Scanalyzer . | . . . Garrison Access Hacks . | . . . Unauthorized Hacks 9 | . 9 . Terminals 9 | . 9 . Track 1 | . 1 . Botnet 3 | . 3 . Operators 1 | . 1 . Skim 4 | . 4 . Fabricators . | . . . Repair Stations . | . . . Recycling Units . | . . . Scanalyzers . | . . . Garrison Access . | . . . Data Cores Recovered . | . . . Used . | . . . Hacking Detections 5 | . 5 . Full Trace Events . | . . . Feedback Events . | . . . Feedback Blocked . | . . . Robot Schematics Acquired . | . . . Robots Built . | . . . Authchips . | . . . Time . | . . . Total Robot Build Rating . | . . . Part Schematics Acquired . | . . . Parts Built . | . . . Authchips . | . . . Time . | . . . Total Part Build Rating . | . . . Part Studies Acquired . | . . . Parts Repaired . | . . . Time . | . . . Parts Recycled . | . . . Recycled Matter . | . . . Retrieved Matter . | . . . Retrieved Components . | . . . Parts Scanalyzed . | . . . Part Schematics Acquired . | . . . Parts Damaged . | . . . Bothacking | -11 -10 -10 ------------ Run | Yrd Mat Sub Used RIF Installer . | . . . Robots Hacked . | . . . Non-combat . | . . . Combat . | . . . Robot Hacks Applied . | . . . Relay Couplers Released . | . . . Fabnet Peak Effective % . | . . . Robots Rewired . | . . . Allies Hacked . | . . . Hacks Repelled . | . . . Allies | -11 -10 -10 -------- Run | Yrd Mat Sub Total Allies . | . . . Largest Group . | . . . Highest-Rated Group . | . . . Highest-Rated Ally . | . . . Total Orders . | . . . Ally Attacks . | . . . Total Damage . | . . . Kills . | . . . Allies Corrupted . | . . . Allies Melted . | . . . Intel | -11 -10 -10 ------- Run | Yrd Mat Sub Active Infowar (turns) . | . . . Robot Analysis Total . | . . . Derelict Logs Recovered 2 | . . 2 Drone Launches . | . . . Drone Recoveries . | . . . Exploration | -11 -10 -10 ------------- Run | Yrd Mat Sub Turns Passed 595 | 48 328 219 Spaces Moved 441 | 44 249 148 Core 1 | 1 . . Treads . | . . . Legs . | . . . Wheels 440 | 43 249 148 Hover . | . . . Flight . | . . . Fastest Speed 50 | 50 80 80 Average Speed 83 | 79 80 90 Slowest Speed 95 | 80 80 95 Overloaded Moves . | . . . Propulsion Burnouts . | . . . Robots Hopped . | . . . Potential Cave-ins . | . . . Cave-ins Triggered . | . . . Exploration Rate (%) 20 | 3 43 14 Regions Visited 2 Branch Regions 1 Pre-discovered Areas 1 | . . 1 Known Exits Taken 1 | . 1 . Unknown Exits Taken 1 | 1 . . Scrap Searched . | . . . Spaces Dug . | . . . Terrain Destroyed . | . . . Melee . | . . . Projectile . | . . . AOE . | . . . Terrain Rammed . | . . . Walls Destroyed . | . . . Machines Disabled . | . . . Actions | -11 -10 -10 --------- Run | Yrd Mat Sub Total 563 | 53 324 186 Wait 25 | . 24 1 Move 439 | 43 248 148 Hop . | . . . Pick Up 15 | 4 8 3 Fast Attach 7 | 6 1 . Attach 4 | . . 4 Detach . | . . . Swap 7 | . 6 1 Drop 11 | . 8 3 Fire 55 | . 29 26 Melee . | . . . Ram . | . . . Kick . | . . . Crush . | . . . Escape Stasis . | . . . Rewire . | . . . Trap . | . . . Miscellaneous . | . . . Route ------- -11/Scrapyard -10/Materials (discovered 5 exits: *Mat x3 / [*Min] / *Sub) -10/Subcaves History --------- Turn | Location | Event 25 | -11/Scrapyard | Discovered new exit (range 15) 49 | -11/Scrapyard | Entered Materials 266 | -10/Materials | Discovered new exit (range 15) 302 | -10/Materials | Build established: Mutant 325 | -10/Materials | Discovered new exit (range 8) 340 | -10/Materials | Identified exit to Materials 373 | -10/Materials | Discovered new exit (range 5) 377 | -10/Materials | Identified exit to Subcaves 377 | -10/Materials | Entered Subcaves 378 | -10/Subcaves | Shifting Twisted Machinery released Sub. Power Source 378 | -10/Subcaves | Approached by a straggling Scientist 406 | -10/Subcaves | Ambushed by Subdwellers from Twisted Machinery 464 | -10/Subcaves | Core integrity fell below 50% 477 | -10/Subcaves | Learned location of Recycling (-7) 563 | -10/Subcaves | Core integrity fell below 20% 596 | -10/Subcaves | Destroyed by PK-BOK(R) with Subdweller Machine Gun Last Messages --------------- 00440_ Dropped Lgt. Treads. 00442_ Acquired Flamer. 00444_ Acquired Humpback. 00446_ Acquired 48 matter. 00463_ Triggered Shrapnel Trap. 00463_ An expanding cloud of shrapnel blasts out in all directions. 00477_ Acquired derelict log, extracted data. World map updated: -7/Recycling. 00491_ Triggered Piercing Trap. 00491_ Spikes shoot up from the floor. 00491_ Critical hit (Impale). 00551_ PK-BOK(R) affixes Scrap Shield Fragment to Scrap Shield. 00566_ Sml. Laser destroyed. 00572_ Sub. Monowheel destroyed. 00574_ Sml. Laser destroyed. 00584_ Flamer destroyed. 00585_ Disposable Heat Sink melted. 00585_ FT-GJV(R) destroyed. 00590_ Wheel destroyed. 00594_ Ion Engine destroyed. Map ----- +----------------------------------------------------+ | ????????????????????????????????????????? | | ????????????????????????????????????????? | | ????????????????????????????????????????? | | ????????????????????????????????????????? | | ????????????????????????????????????????? | | ????????????????????????????????????????? | | ????????????????????????????????????????? | | ????????????????????????????????????????? | | ????????????????????????????????????????? | | ????????????????????????????????????????? | | ??????????????????? ????????????????????? | | ?????????????????? # ??????????????????? | | ?????????????????? ??????????????????? | | ?????????????????? ??????????????????? | | ?????????????????? #??????????????????? | | ?????????????????? #??????????????????? | | ?????????####????? #??????????????????? | | ????????? "###?? ???????????????????? | | ?????????? "&"?# #???????????????????? | | ???????????< ?# ????????????????????? | | ???????????? "## #????????????????? ?? | | ????????????? "# ###??????????????? ?? | | ????????????##[## ##????????????? #? | | ????????????#R%#< #?###????????? #? | | ????????????# # ## ##??####??? #? | | ????????????# @ # ##?# ##?? #? | | ????????????# # # #?# ##? ## | | ??????????? ### ### ## | | ????????? ??# ## ## ? | | ???????? ??## ##?????# #?# | | ???????## "" ?#### #??????# ### | | ????????#####?# #??????# | | ??????????????# ##?????# | | ??????????????# ## #?????# | | ??????????????###?# #?????# | | ??????????????????# #????## | | ??????????????????## ##?### ### | | ???????????????????# ### ##### | | ???????????????????# ## # | | ???????????????????## ## ### | | ????????????????????### ######## | | ??????????????????????# #?????## # | | ?????????????????????## ##???### #### | | ?????????????????????# #????# "# | | ???????????????????### ###?## " | | ???????????????????# #?# | | ???????????????????# ### | | ???????????????????# ## ##### | | ???????????????????# #?## #??##" """ | | ???????????????????###???? ##?## " #"# | +----------------------------------------------------+ Best States ------------- Heat Dissipation 25 Energy Generation 10 Energy Capacity 250 Matter Stores 281 Matter Capacity 300 Sight Range 16 Terrain Scan Density 10 Evasion (%) 44 Item Schematics ----------------- None Robot Schematics ------------------ None Fabricated ------------ Nothing Repaired ---------- Nothing Studied --------- None Alien Tech Used ----------------- None Achievements -------------- None Challenges ------------ None Game ------ Seed DefenseAnalysisSaw Manual? 0 Play Time 00:13:53 Cumulative 24.5 hours Start 2025.10.27 @ 20:20:29 End 2025.10.27 @ 20:35:07 Sessions 1 Manual Loads 0 Difficulty Rogue Special Mode None Game No. 24 Rogue 24 Adventurer 0 Explorer 0 Win Type - Total 0 Types 0/0/0/0/0/0/0/0/0/0 Lore% 20 Gallery% 21 Achievement% 16 Wizard Run 0 Options --------- Layout 0 ASCII 0 Keyboard 0 Movement Mouse Keybinds 0 Fullscreen 2 Font 24/Smallcaps Map View 76x50 Zoom Use 0% Tactical HUD 1 Map Filters NONE Filters NONE Steam 1 RUN: e1cdf8e0-435c-4bc9-9c22-7b7c6d73f2cb